fUST/lending_fUST_20250917
["ID","MTS","AMOUNT","RATE_DAILY","PERIOD"]
[385857929,1758063040574,-480.0,0.00021917,2]
[385857930,1758063040583,-480.0,0.00021917,2]
[385857931,1758063040592,-754.72,0.00021917,2]
[385857932,1758063040602,-480.0,0.00021917,2]
[385857933,1758063040612,-480.0,0.00021917,2]
[385857934,1758063040622,-2132.74,0.00021917,2]
[385857935,1758063040632,-796.46,0.00021917,2]
[385857936,1758063040641,-360.2030398,0.00021917,2]
[385857938,1758063040679,-119.7969602,0.00021917,2]
[385857940,1758063040689,-1695.14,0.00021917,2]
[385857942,1758063040698,-480.0,0.00021917,2]
[385857944,1758063040707,-688.69,0.00021917,2]
[385857945,1758063040717,-480.0,0.00021917,2]
[385857946,1758063040727,-2403.11,0.00021917,2]
[385857947,1758063040736,-480.0,0.00021917,2]
[385857948,1758063040746,-480.0,0.00021917,2]
[385857949,1758063040755,-480.0,0.00021917,2]
[385857950,1758063040765,-4370.06,0.00021917,2]
[385857951,1758063040775,-572.28,0.00021917,2]
[385857952,1758063040784,-480.0,0.00021917,2]
[385857954,1758063040793,-480.0,0.00021917,2]
[385857955,1758063040803,-9360.54,0.00021917,2]
[385857956,1758063040813,-480.0,0.00021917,2]
[385857957,1758063040822,-646.03,0.00021917,2]
[385857958,1758063040832,-529.98,0.00021917,2]
[385857959,1758063040841,-480.0,0.00021917,2]
[385857960,1758063040850,-480.0,0.00021917,2]
[385857961,1758063040860,-2149.67,0.00021917,2]
[385857962,1758063040869,-480.0,0.00021917,2]
[385857963,1758063040879,-480.0,0.00021917,2]
[385857964,1758063040888,-480.0,0.00021917,2]
[385857965,1758063040897,-480.0,0.00021917,2]
[385857966,1758063040906,-488.43399683,0.00021917,2]
[385857967,1758063040915,-480.0,0.00021917,2]
[385857968,1758063040925,-661.01,0.00021917,2]
[385857969,1758063040934,-884.2,0.00021917,2]
[385857970,1758063040944,-318.31815183,0.00021917,2]
[385857971,1758063040954,-480.0,0.00021917,2]
[385857972,1758063040964,-4707.16,0.00021917,2]
[385857973,1758063040974,-480.0,0.00021917,2]
[385857974,1758063040983,-565.66,0.00021917,2]
[385857975,1758063040994,-480.0,0.00021917,2]
[385857976,1758063041004,-772.66,0.00021917,2]
[385857977,1758063041015,-898.66,0.00021917,2]
[385857978,1758063041024,-480.0,0.00021917,2]
[385857979,1758063041034,-1759.36,0.00021917,2]
[385857980,1758063041044,-1027.33,0.00021917,2]
[385857981,1758063041053,-480.0,0.00021917,2]
[385857982,1758063041062,-1022.71,0.00021917,2]
[385857983,1758063041071,-480.0,0.00021917,2]
[385857984,1758063041081,-480.0,0.00021917,2]
[385857985,1758063041090,-480.0,0.00021917,2]
[385857986,1758063041105,-480.0,0.00021917,2]
[385857987,1758063041115,-614.49,0.00021917,2]
[385857988,1758063041124,-778.27,0.00021917,2]
[385857989,1758063041133,-281.79859185,0.00021917,2]
[385857990,1758063041146,-1889.44140815,0.00021917,2]
[385857991,1758063041155,-480.0,0.00021917,2]
[385857992,1758063041164,-1873.12,0.00021917,2]
[385857993,1758063041175,-480.0,0.00021917,2]
[385857994,1758063041184,-480.0,0.00021917,2]
[385857995,1758063041193,-480.0,0.00021917,2]
[385857996,1758063041203,-480.0,0.00021917,2]
[385857997,1758063041211,-817.99,0.00021917,2]
[385857998,1758063041221,-186.0,0.00021917,2]
[385857999,1758063041230,-480.0,0.00021917,2]
[385858000,1758063041239,-1106.38,0.00021917,2]
[385858001,1758063041248,-480.0,0.00021917,2]
[385858002,1758063041258,-480.0,0.00021917,2]
[385858003,1758063041267,-151.0,0.00021917,2]
[385858004,1758063041276,-151.0,0.00021917,2]
[385858005,1758063041285,-292.97,0.00021917,2]
[385858006,1758063041294,-213.19656822,0.00021917,2]
[385858007,1758063041305,-266.80343178,0.00021917,2]
[385858008,1758063041315,-668.73,0.00021917,2]
[385858009,1758063041324,-480.0,0.00021917,2]
[385858010,1758063041334,-1049.37,0.00021917,2]
[385858011,1758063041343,-480.0,0.00021917,2]
[385858012,1758063041352,-480.0,0.00021917,2]
[385858013,1758063041362,-481.27769607,0.00021917,2]
[385858014,1758063041371,-1577.84,0.00021917,2]
[385858015,1758063041380,-647.41,0.00021917,2]
[385858016,1758063041389,-532.54,0.00021917,2]
[385858017,1758063041398,-1057.48,0.00021917,2]
[385858018,1758063041407,-480.0,0.00021917,2]
[385858019,1758063041417,-484.67924728,0.00021917,2]
[385858020,1758063041426,-480.0,0.00021917,2]
[385858021,1758063041435,-3504.16,0.00021917,2]
[385858022,1758063041444,-487.16011767,0.00021917,2]
[385858023,1758063041453,-480.0,0.00021917,2]
[385858024,1758063041462,-480.0,0.00021917,2]
[385858025,1758063041472,-1797.14,0.00021917,2]
[385858026,1758063041481,-1465.2,0.00021917,2]
[385858027,1758063041491,-768.0,0.00021917,2]
[385858028,1758063041500,-500.0,0.00021973,2]
[385858029,1758063041509,-501.74410794,0.00021973,2]
[385858030,1758063041519,-500.0,0.00021973,2]
[385858031,1758063041528,-500.0,0.00021973,2]
[385858032,1758063041539,-500.27064649,0.00021973,2]
[385858033,1758063041549,-183.93961447,0.00021973,2]
[385858034,1758063041560,-316.06038553,0.00021973,2]
[385858035,1758063041569,-63.23360917,0.00021973,2]
[385858036,1758063041581,-436.76639083,0.00021973,2]
[385858037,1758063041591,-500.0,0.00021973,2]
[385858038,1758063041601,-500.0,0.00021973,2]
[385858039,1758063041611,-500.0,0.00021973,2]
[385858040,1758063041620,-646.01131888,0.00022088,2]
[385858041,1758063041629,-806.61089186,0.00022091,2]
[385858042,1758063041640,-193.38910814,0.00022091,2]
[385858043,1758063041655,-163.012,0.00022173,2]
[385858044,1758063041665,-71.88314513,0.00022191,2]
[385858045,1758063041677,-79.11685487,0.00022191,2]
[385858046,1758063041686,-500.0,0.00022191,2]
[385858047,1758063041695,-500.0,0.00022191,2]
[385858048,1758063041714,-151.0,0.00022191,2]
[385858049,1758063041724,-244.53102359,0.00022191,2]
[385858050,1758063041733,-151.0,0.00022191,2]
[385858051,1758063041742,-254.30211618,0.00022191,2]
[385858052,1758063041753,-513.69788382,0.00022191,2]
[385858053,1758063041763,-392.63812018,0.00022191,3]
[385858054,1758063041775,-87.36187982,0.00022191,3]
[385858055,1758063041784,-480.0,0.00022191,3]
[385858056,1758063041793,-422.63812018,0.00022191,3]
[385858057,1758063041804,-57.36187982,0.00022191,3]
[385858058,1758063041813,-480.0,0.00022191,3]
[385858059,1758063041822,-466.11812018,0.00022191,3]
[385858060,1758063041933,-267.0,0.00021917,2]
[385858061,1758063041944,-213.0,0.00021917,2]
[385858062,1758063041954,-13.88187982,0.00022191,3]
[385858063,1758063041963,-480.0,0.00022191,3]
[385858064,1758063041973,-480.0,0.00022191,3]
[385858065,1758063041982,-480.0,0.00022191,3]
[385858066,1758063041991,-480.0,0.00022191,3]
[385858067,1758063042001,-480.0,0.00022191,3]
[385858068,1758063042010,-480.0,0.00022191,3]
[385858069,1758063042020,-480.0,0.00022191,3]
[385858070,1758063042029,-480.0,0.00022191,3]
[385858071,1758063042038,-487.62,0.00022191,3]
[385858072,1758063042047,-480.0,0.00022191,3]
[385858073,1758063042056,-721.57,0.00022191,3]
[385858074,1758063042066,-523.99,0.00022191,3]
[385858075,1758063042075,-835.87,0.00022191,3]
[385858076,1758063042085,-533.83,0.00022191,3]
[385858077,1758063042094,-480.0,0.00022191,3]
[385858078,1758063042103,-1148.62,0.00022191,3]
[385858079,1758063042112,-480.0,0.00022191,3]
[385858080,1758063042125,-480.0,0.00022191,3]
[385858081,1758063042134,-480.0,0.00022191,3]
[385858082,1758063042143,-577.78,0.00022191,3]
[385858083,1758063042152,-480.0,0.00022191,3]
[385858085,1758063042162,-3486.37,0.00022191,3]
[385858087,1758063042171,-480.0,0.00022191,3]
[385858088,1758063042181,-584.33,0.00022191,3]
[385858089,1758063042190,-1431.49,0.00022191,3]
[385858090,1758063042295,-425.69552133,0.00022191,3]
[385858091,1758063042306,-480.0,0.00022191,3]
[385858092,1758063042315,-294.92875363,0.00022191,3]
[385858093,1758063042325,-480.0,0.00022191,3]
[385858094,1758063042334,-480.0,0.00022191,3]
[385858095,1758063042343,-480.0,0.00022191,3]
[385858096,1758063042353,-480.0,0.00022191,3]
[385858097,1758063042362,-480.0,0.00022191,3]
[385858098,1758063042371,-480.0,0.00022191,3]
[385858099,1758063042381,-480.0,0.00022191,3]
[385858100,1758063042390,-480.0,0.00022191,3]
[385858101,1758063042399,-480.0,0.00022191,3]
[385858102,1758063042408,-480.0,0.00022191,3]
[385858103,1758063042418,-481.88,0.00022191,3]
[385858104,1758063042427,-393.70988658,0.00022191,3]
[385858105,1758063042436,-480.1,0.00022191,3]
[385858106,1758063042446,-17946.2,0.00022191,3]
[385858107,1758063042455,-480.0,0.00022191,3]
[385858108,1758063042464,-2028.78,0.00022191,3]
[385858109,1758063042473,-926.35,0.00022191,3]
[385858110,1758063042483,-480.0,0.00022191,3]
[385858111,1758063042492,-514.1,0.00022191,3]
[385858112,1758063042501,-480.0,0.00022191,3]
[385858113,1758063042510,-226.56197698,0.00022191,3]
[385858114,1758063042519,-480.0,0.00022191,3]
[385858115,1758063042528,-480.0,0.00022191,3]
[385858116,1758063042537,-919.05,0.00022191,3]
[385858117,1758063042546,-480.0,0.00022191,3]
[385858118,1758063042555,-921.75,0.00022191,3]
[385858119,1758063042564,-480.0,0.00022191,3]
[385858120,1758063042573,-3483.56,0.00022191,3]
[385858121,1758063042583,-480.0,0.00022191,3]
[385858122,1758063042592,-480.0,0.00022191,3]
[385858123,1758063042602,-898.69,0.00022191,3]
[385858124,1758063042612,-855.02,0.00022191,3]
[385858125,1758063042622,-1534.99,0.00022191,3]
[385858126,1758063042631,-700.52,0.00022191,3]
[385858127,1758063042640,-591.48,0.00022191,3]
[385858128,1758063042649,-480.0,0.00022191,3]
[385858129,1758063042658,-777.62,0.00022191,3]
[385858130,1758063042668,-518.22,0.00022191,3]
[385858131,1758063042677,-483.85,0.00022191,3]
[385858132,1758063042686,-598.49,0.00022191,3]
[385858133,1758063042695,-480.0,0.00022191,3]
[385858134,1758063042704,-754.72,0.00022191,3]
[385858135,1758063042713,-2132.74,0.00022191,3]
[385858136,1758063042722,-796.46,0.00022191,3]
[385858137,1758063042731,-480.0,0.00022191,3]
[385858138,1758063042740,-1695.14,0.00022191,3]
[385858139,1758063042748,-480.0,0.00022191,3]
[385858140,1758063042757,-688.69,0.00022191,3]
[385858141,1758063042767,-480.0,0.00022191,3]
[385858142,1758063042777,-2403.11,0.00022191,3]
[385858143,1758063042786,-480.0,0.00022191,3]
[385858144,1758063042796,-4370.06,0.00022191,3]
[385858145,1758063042805,-572.28,0.00022191,3]
[385858146,1758063042815,-480.0,0.00022191,3]
[385858147,1758063042824,-480.0,0.00022191,3]
[385858148,1758063042834,-9360.54,0.00022191,3]
[385858149,1758063042843,-646.03,0.00022191,3]
[385858150,1758063042852,-529.98,0.00022191,3]
[385858151,1758063042863,-480.0,0.00022191,3]
[385858152,1758063042873,-2149.67,0.00022191,3]
[385858153,1758063042884,-480.0,0.00022191,3]
[385858154,1758063042894,-480.0,0.00022191,3]
[385858155,1758063042903,-661.01,0.00022191,3]
[385858156,1758063042912,-884.2,0.00022191,3]
[385858157,1758063042922,-2694.77373618,0.00022191,3]
[385858158,1758063043025,-2012.38626382,0.00022191,3]
[385858159,1758063043034,-565.66,0.00022191,3]
[385858160,1758063043044,-772.66,0.00022191,3]
[385858161,1758063043054,-898.66,0.00022191,3]
[385858162,1758063043064,-950.98789565,0.00022191,3]
[385858163,1758063043075,-808.37210435,0.00022191,3]
[385858164,1758063043086,-1027.33,0.00022191,3]
[385858165,1758063043096,-1022.71,0.00022191,3]
[385858166,1758063043105,-480.0,0.00022191,3]
[385858167,1758063043114,-480.0,0.00022191,3]
[385858168,1758063043128,-480.0,0.00022191,3]
[385858171,1758063043136,-480.0,0.00022191,3]
[385858173,1758063043146,-614.49,0.00022191,3]
[385858174,1758063043155,-778.27,0.00022191,3]
[385858175,1758063043164,-116.34373618,0.00022191,3]
[385858176,1758063043181,-456.4,0.00022191,3]
[385858177,1758063043192,-572.325,0.00022191,3]
[385858178,1758063043204,-1026.17126382,0.00022191,3]
[385858179,1758063043213,-1873.12,0.00022191,3]
[385858180,1758063043223,-480.0,0.00022191,3]
[385858181,1758063043233,-480.0,0.00022191,3]
[385858182,1758063043242,-480.0,0.00022191,3]
[385858184,1758063043251,-817.99,0.00022191,3]
[385858185,1758063043260,-1106.38,0.00022191,3]
[385858186,1758063043270,-480.0,0.00022191,3]
[385858187,1758063043280,-256.98546918,0.00022191,3]
[385858188,1758063043292,-411.74453082,0.00022191,3]
[385858189,1758063043301,-49.20721234,0.00022191,3]
[385858192,1758063043875,-270.0,0.00022191,3]
[385858258,1758063205751,599.92919946,0.000199,2]
[385858259,1758063205867,599.92919919,0.00021149,2]
[385858269,1758063394951,559.93391936,0.000199,2]
[385858270,1758063395024,559.93391924,0.00021149,2]
[385858284,1758063578834,522.60499131,0.000199,2]
[385858285,1758063578935,522.60499129,0.00021149,2]
[385858298,1758063768219,487.76465875,0.000199,2]
[385858299,1758063768322,487.76465853,0.00021149,2]
[385858336,1758063950296,455.24701486,0.000199,2]
[385858337,1758063950424,455.24701462,0.00021149,2]
[385858338,1758064026761,516.6872912,0.0002084,2]
[385858339,1758064026783,10000.01,0.0002084,2]
[385858340,1758064026804,10000.01,0.0002084,2]
[385858341,1758064026828,10000.01,0.0002084,2]
[385858342,1758064026850,10000.01,0.0002084,2]
[385858343,1758064026870,10000.01,0.0002084,2]
[385858344,1758064026891,10000.01,0.0002084,2]
[385858345,1758064026912,10000.01,0.0002084,2]
[385858346,1758064027054,10000.01,0.0002084,2]
[385858347,1758064027077,10000.01,0.0002084,2]
[385858348,1758064027108,142380.0907406,0.0002084,2]
[385858351,1758064135993,430.24723483,0.000199,2]
[385858352,1758064136104,430.24723467,0.00021149,2]
[385858494,1758064238271,-895.0,0.00021715,2]
[385858496,1758064238281,-300.0,0.00021715,2]
[385858498,1758064238290,-1200.0,0.00021715,2]
[385858500,1758064238300,-645.74384606,0.00021716,2]
[385858502,1758064238309,-176.65739038,0.00021716,2]
[385858504,1758064238318,-500.0,0.00021716,2]
[385858506,1758064238328,-500.0,0.00021716,2]
[385858508,1758064238337,-500.0,0.00021716,2]
[385858510,1758064238347,-500.0,0.00021716,2]
[385858512,1758064238356,-500.0,0.00021716,2]
[385858514,1758064238365,-630.80055956,0.00021716,2]
[385858516,1758064238375,-500.0,0.00021716,2]
[385858518,1758064238384,-500.0,0.00021716,2]
[385858520,1758064238394,-500.0,0.00021716,2]
[385858522,1758064238403,-500.0,0.00021716,2]
[385858524,1758064238413,-545.36462173,0.00021716,2]
[385858526,1758064238424,-392.75170459,0.00021716,2]
[385858528,1758064238433,-236.13643856,0.00021716,2]
[385858530,1758064238443,-500.0,0.00021716,2]
[385858532,1758064238453,-500.0,0.00021716,2]
[385858534,1758064238462,-500.0,0.00021716,2]
[385858536,1758064238471,-638.68754251,0.00021716,2]
[385858538,1758064238481,-500.0,0.00021716,2]
[385858540,1758064238490,-500.0,0.00021716,2]
[385858542,1758064238499,-39845.73900456,0.00021717,2]
[385858544,1758064238511,-445.42561361,0.00021717,2]
[385858546,1758064238522,-1122.44112333,0.00021717,2]
[385858548,1758064238541,-6050.93217191,0.00021717,2]
[385858549,1758064238552,-567.95000424,0.00021717,2]
[385858550,1758064238563,-982.6,0.00021717,2]
[385858553,1758064241029,-3310.9422525,0.00021717,2]
[385858554,1758064241041,-33457.76622762,0.00021717,2]
[385858555,1758064241053,-2665.26230154,0.00021717,2]
[385858556,1758064241065,-8869.52953895,0.00021717,2]
[385858557,1758064241074,-484.44204936,0.00021817,2]
[385858558,1758064241083,-160.0,0.00021901,2]
[385858559,1758064241093,-847.61663983,0.00021901,2]
[385858560,1758064241102,-160.0,0.00021901,2]
[385858561,1758064241111,-465.88,0.00021907,3]
[385858562,1758064241120,-155.29,0.00021907,3]
[385858563,1758064241129,-465.91,0.00021907,3]
[385858564,1758064241139,-256.12955194,0.00021916,2]
[385858565,1758064241150,-243.87044806,0.00021916,2]
[385858566,1758064241159,-502.41790992,0.00021916,2]
[385858567,1758064241169,-500.0,0.00021916,2]
[385858568,1758064241178,-500.0,0.00021916,2]
[385858569,1758064241188,-500.0,0.00021916,2]
[385858570,1758064241197,-500.0,0.00021916,2]
[385858571,1758064241207,-217.86301978,0.00021917,2]
[385858572,1758064241217,-160.0,0.00021917,2]
[385858573,1758064241227,-233.29513139,0.00021917,2]
[385858574,1758064241236,-480.0,0.00021917,2]
[385858575,1758064241245,-480.0,0.00021917,2]
[385858576,1758064241255,-484.16,0.00021917,2]
[385858577,1758064241263,-480.0,0.00021917,2]
[385858578,1758064241273,-480.0,0.00021917,2]
[385858579,1758064241282,-480.0,0.00021917,2]
[385858580,1758064241291,-532.88,0.00021917,2]
[385858581,1758064241300,-480.0,0.00021917,2]
[385858582,1758064241309,-480.0,0.00021917,2]
[385858583,1758064241319,-480.0,0.00021917,2]
[385858584,1758064241329,-480.0,0.00021917,2]
[385858585,1758064241338,-480.0,0.00021917,2]
[385858586,1758064241347,-480.0,0.00021917,2]
[385858587,1758064241356,-480.0,0.00021917,2]
[385858588,1758064241365,-480.0,0.00021917,2]
[385858589,1758064241374,-480.0,0.00021917,2]
[385858590,1758064241383,-480.0,0.00021917,2]
[385858591,1758064241392,-480.0,0.00021917,2]
[385858592,1758064241401,-480.0,0.00021917,2]
[385858593,1758064241411,-480.0,0.00021917,2]
[385858594,1758064241420,-256.94138163,0.00021917,2]
[385858595,1758064241429,-480.0,0.00021917,2]
[385858596,1758064241439,-480.0,0.00021917,2]
[385858597,1758064241448,-480.0,0.00021917,2]
[385858598,1758064241458,-480.0,0.00021917,2]
[385858599,1758064241468,-214.02284841,0.00021917,2]
[385858600,1758064241478,-480.0,0.00021917,2]
[385858601,1758064241487,-480.0,0.00021917,2]
[385858603,1758064241496,-480.0,0.00021917,2]
[385858604,1758064241505,-480.0,0.00021917,2]
[385858605,1758064241514,-480.0,0.00021917,2]
[385858606,1758064241524,-480.0,0.00021917,2]
[385858607,1758064241533,-480.0,0.00021917,2]
[385858608,1758064241542,-480.0,0.00021917,2]
[385858609,1758064241552,-531.50837319,0.00021917,2]
[385858610,1758064241561,-480.0,0.00021917,2]
[385858611,1758064241570,-480.0,0.00021917,2]
[385858612,1758064241579,-480.0,0.00021917,2]
[385858613,1758064241589,-480.0,0.00021917,2]
[385858614,1758064241598,-480.0,0.00021917,2]
[385858615,1758064241607,-480.0,0.00021917,2]
[385858616,1758064241617,-480.0,0.00021917,2]
[385858617,1758064241627,-480.0,0.00021917,2]
[385858618,1758064241635,-480.0,0.00021917,2]
[385858619,1758064241645,-1032.38,0.00021917,2]
[385858620,1758064241654,-480.0,0.00021917,2]
[385858621,1758064241662,-480.0,0.00021917,2]
[385858622,1758064241673,-480.0,0.00021917,2]
[385858623,1758064241682,-480.0,0.00021917,2]
[385858624,1758064241692,-480.0,0.00021917,2]
[385858625,1758064241701,-480.0,0.00021917,2]
[385858626,1758064241710,-530.35,0.00021917,2]
[385858627,1758064241719,-480.0,0.00021917,2]
[385858628,1758064241729,-480.0,0.00021917,2]
[385858629,1758064241738,-480.0,0.00021917,2]
[385858630,1758064241746,-480.0,0.00021917,2]
[385858631,1758064241755,-480.0,0.00021917,2]
[385858632,1758064241765,-480.0,0.00021917,2]
[385858633,1758064241775,-480.0,0.00021917,2]
[385858634,1758064241897,-480.0,0.00021917,2]
[385858635,1758064241908,-526.43,0.00021917,2]
[385858636,1758064241918,-480.0,0.00021917,2]
[385858637,1758064241929,-480.0,0.00021917,2]
[385858638,1758064241938,-485.96400693,0.00021917,2]
[385858639,1758064241947,-480.0,0.00021917,2]
[385858640,1758064241956,-480.0,0.00021917,2]
[385858641,1758064241965,-480.0,0.00021917,2]
[385858642,1758064241974,-480.0,0.00021917,2]
[385858643,1758064241983,-480.0,0.00021917,2]
[385858644,1758064241993,-480.0,0.00021917,2]
[385858645,1758064242002,-480.0,0.00021917,2]
[385858646,1758064242011,-480.0,0.00021917,2]
[385858647,1758064242021,-723.39,0.00021917,2]
[385858648,1758064242030,-480.0,0.00021917,2]
[385858649,1758064242039,-480.0,0.00021917,2]
[385858650,1758064242048,-480.75944577,0.00021917,2]
[385858651,1758064242058,-480.0,0.00021917,2]
[385858652,1758064242067,-483.75456902,0.00021917,2]
[385858653,1758064242077,-480.0,0.00021917,2]
[385858654,1758064242087,-311.54081522,0.00021917,2]
[385858655,1758064242096,-833.93,0.00021917,2]
[385858656,1758064242107,-480.0,0.00021917,2]
[385858657,1758064242117,-340.58124665,0.00021917,2]
[385858658,1758064242127,-480.0,0.00021917,2]
[385858659,1758064242136,-480.0,0.00021917,2]
[385858660,1758064242146,-480.0,0.00021917,2]
[385858661,1758064242155,-480.0,0.00021917,2]
[385858662,1758064242164,-562.11,0.00021917,2]
[385858663,1758064242173,-480.0,0.00021917,2]
[385858664,1758064242183,-480.0,0.00021917,2]
[385858665,1758064242193,-480.0,0.00021917,2]
[385858666,1758064242203,-480.0,0.00021917,2]
[385858667,1758064242213,-480.0,0.00021917,2]
[385858668,1758064242222,-480.0,0.00021917,2]
[385858669,1758064242231,-480.0,0.00021917,2]
[385858670,1758064242240,-480.0,0.00021917,2]
[385858671,1758064242250,-480.0,0.00021917,2]
[385858672,1758064242259,-480.0,0.00021917,2]
[385858673,1758064242268,-480.0,0.00021917,2]
[385858674,1758064242278,-480.0,0.00021917,2]
[385858675,1758064242287,-480.0,0.00021917,2]
[385858676,1758064242296,-480.0,0.00021917,2]
[385858677,1758064242305,-480.0,0.00021917,2]
[385858678,1758064242315,-480.0,0.00021917,2]
[385858679,1758064242324,-480.0,0.00021917,2]
[385858680,1758064242334,-480.0,0.00021917,2]
[385858681,1758064242343,-480.0,0.00021917,2]
[385858682,1758064242352,-480.0,0.00021917,2]
[385858683,1758064242361,-480.0,0.00021917,2]
[385858684,1758064242371,-480.0,0.00021917,2]
[385858685,1758064242380,-480.0,0.00021917,2]
[385858686,1758064242390,-480.0,0.00021917,2]
[385858687,1758064242398,-480.0,0.00021917,2]
[385858688,1758064242408,-381.82133658,0.00021917,2]
[385858701,1758064243284,-98.17866342,0.00021917,2]
[385858702,1758064243296,-509.14282418,0.00021917,2]
[385858703,1758064243305,-480.0,0.00021917,2]
[385858704,1758064243314,-480.0,0.00021917,2]
[385858705,1758064243324,-480.0,0.00021917,2]
[385858706,1758064243335,-1150.91,0.00021917,2]
[385858707,1758064243344,-480.0,0.00021917,2]
[385858708,1758064243353,-500.0,0.00021917,2]
[385858709,1758064243362,-480.0,0.00021917,2]
[385858710,1758064243372,-480.0,0.00021917,2]
[385858711,1758064243381,-480.0,0.00021917,2]
[385858712,1758064243390,-480.0,0.00021917,2]
[385858713,1758064243400,-180.78574367,0.00021917,2]
[385858714,1758064243409,-480.0,0.00021917,2]
[385858715,1758064243419,-480.0,0.00021917,2]
[385858716,1758064243428,-480.0,0.00021917,2]
[385858717,1758064243437,-587.54,0.00021917,2]
[385858718,1758064243447,-480.0,0.00021917,2]
[385858719,1758064243456,-480.0,0.00021917,2]
[385858720,1758064243466,-480.0,0.00021917,2]
[385858721,1758064243475,-480.0,0.00021917,2]
[385858722,1758064243484,-590.53,0.00021917,2]
[385858723,1758064243493,-480.0,0.00021917,2]
[385858724,1758064243502,-480.0,0.00021917,2]
[385858725,1758064243511,-480.0,0.00021917,2]
[385858726,1758064243520,-480.0,0.00021917,2]
[385858727,1758064243529,-866.32,0.00021917,2]
[385858728,1758064243538,-1447.33,0.00021917,2]
[385858729,1758064243548,-480.0,0.00021917,2]
[385858730,1758064243557,-228.59584326,0.00021917,2]
[385858731,1758064243567,-480.0,0.00021917,2]
[385858732,1758064243582,-486.72549177,0.00021917,2]
[385858733,1758064243591,-480.0,0.00021917,2]
[385858734,1758064243600,-480.0,0.00021917,2]
[385858735,1758064243610,-480.0,0.00021917,2]
[385858736,1758064243619,-480.0,0.00021917,2]
[385858737,1758064243629,-480.0,0.00021917,2]
[385858738,1758064243638,-432.77562155,0.00021917,2]
[385858739,1758064243647,-480.0,0.00021917,2]
[385858740,1758064243656,-480.0,0.00021917,2]
[385858741,1758064243665,-480.0,0.00021917,2]
[385858742,1758064243674,-480.0,0.00021917,2]
[385858743,1758064243684,-1600.85,0.00021917,2]
[385858744,1758064243692,-548.23,0.00021917,2]
[385858745,1758064243702,-480.0,0.00021917,2]
[385858746,1758064243711,-480.0,0.00021917,2]
[385858747,1758064243720,-480.0,0.00021917,2]
[385858748,1758064243728,-480.0,0.00021917,2]
[385858749,1758064243737,-480.0,0.00021917,2]
[385858750,1758064243747,-480.0,0.00021917,2]
[385858751,1758064243755,-480.0,0.00021917,2]
[385858752,1758064243764,-480.0,0.00021917,2]
[385858753,1758064243773,-1655.75,0.00021917,2]
[385858754,1758064243782,-480.0,0.00021917,2]
[385858755,1758064243792,-480.0,0.00021917,2]
[385858756,1758064243801,-480.0,0.00021917,2]
[385858757,1758064243810,-824.08,0.00021917,2]
[385858758,1758064243823,-480.0,0.00021917,2]
[385858759,1758064243832,-156.58006877,0.00021917,2]
[385858760,1758064243841,-677.37,0.00021917,2]
[385858761,1758064243850,-480.0,0.00021917,2]